bitfinex-derivatives/quotes_ETHF0:USTF0_20241007
["timestamp","ask_amount","ask_price","bid_price","bid_amount"]
[1728324354968,1.24787,2476.1,2476.0,0.40397]
[1728324358078,5.28627,2476.1,2476.0,0.40397]
[1728324358472,1.24787,2476.1,2476.0,0.40397]
[1728324359070,5.28627,2476.1,2476.0,0.40397]
[1728324359563,1.24787,2476.1,2476.0,0.40397]
[1728324360764,0.4217,2476.1,2476.0,0.40397]
[1728324360973,3.6095,2476.2,2476.0,0.40397]
[1728324360974,3.61174,2476.2,2476.1,0.40396]
[1728324361170,3.2078,2476.2,2476.1,0.79726]
[1728324361369,3.2078,2476.2,2476.1,1.20326]
[1728324361576,3.61174,2476.2,2476.1,1.20326]
[1728324362579,0.40397,2476.1,2476.0,0.40396]
[1728324362769,1.62467,2476.1,2476.0,0.40396]
[1728324363173,1.62467,2476.1,2476.0,0.59126]
[1728324363377,3.08467,2476.1,2476.0,0.59126]
[1728324365281,2.6807,2476.1,2476.0,0.59126]
[1728324365974,3.08466,2476.1,2476.0,0.59126]
[1728324366586,1.62466,2476.1,2476.0,0.59126]
[1728324368979,1.62466,2476.1,2476.0,0.2683]
[1728324368980,4.77466,2476.1,2476.0,0.2683]
[1728324369173,14.81306,2476.1,2476.0,0.2683]
[1728324370484,14.81306,2476.1,2475.6,0.40403]
[1728324370485,15.18212029,2476.1,2475.6,0.40403]
[1728324370677,3.61182,2475.7,2475.6,0.40403]
[1728324371177,4.43072,2475.7,2475.6,0.40403]
[1728324371378,0.40405,2475.5,2475.4,19.13289]
[1728324371578,3.55405,2475.5,2475.4,18.72882]
[1728324371773,3.55405,2475.5,2475.4,19.45599]
[1728324372579,0.40405,2475.5,2475.4,19.45599]
[1728324372779,0.40405,2475.6,2475.5,0.40404]
[1728324373184,0.40405,2475.6,2475.4,19.05192]
[1728324373490,0.40405,2475.5,2475.4,19.45598]
[1728324374891,0.40405,2475.5,2475.4,19.45599]
[1728324375481,0.40405,2475.5,2475.4,19.05192]
[1728324377294,3.55405,2475.5,2475.4,19.05192]
[1728324380189,7.59405,2475.5,2475.4,19.05192]
[1728324380993,13.59405,2475.5,2475.4,19.05192]
[1728324381494,15.6906038,2475.5,2475.4,19.05192]
[1728324386501,15.6906038,2475.5,2475.4,18.48358007]
[1728324386704,14.0006038,2475.5,2475.4,16.52353105]
[1728324386897,19.29288414,2475.5,2475.4,5.41353105]
[1728324387197,19.29288414,2475.5,2475.4,3.06117105]
[1728324387390,14.0006038,2475.5,2475.4,1.40094105]
[1728324387796,14.11647044,2475.5,2475.4,0.12152105]
[1728324390399,14.11647044,2475.5,2475.4,1.05e-06]
[1728324392907,5.33247044,2475.5,2475.4,1.05e-06]
[1728324393106,1.1766038,2475.5,2475.4,1.05e-06]
[1728324393401,0.40405,2475.5,2475.4,1.05e-06]
[1728324393607,1.86405,2475.5,2475.4,0.81540105]
[1728324395706,1.86405,2475.5,2475.4,1.05e-06]
[1728324396908,3.55405,2475.5,2475.4,1.05e-06]
[1728324398902,7.59405,2475.5,2475.4,1.05e-06]
[1728324399102,13.59405,2475.5,2475.4,1.05e-06]
[1728324399707,13.19,2475.5,2475.1,0.7921]
[1728324399909,6.7619,2475.2,2475.1,0.3944]
[1728324400108,0.40412,2475.1,2475.0,0.4098]
[1728324400709,14.512,2475.1,2474.5,0.094]
[1728324400912,0.40422,2474.5,2474.4,0.4127]
[1728324401109,3.55422,2474.5,2474.4,0.4127]
[1728324401409,0.40427,2474.2,2474.0,0.40429]
[1728324401608,3.2078,2474.4,2474.0,0.0698]
[1728324401814,3.2078,2474.1,2474.0,0.4741]
[1728324402212,3.2078,2474.1,2474.0,4.5157]
[1728324402604,3.2078,2474.1,2474.0,4.9284]
[1728324403315,3.2078,2474.1,2474.0,5.3372]
[1728324403510,0.40426,2474.3,2474.1,0.40427]
[1728324404017,0.40426,2474.3,2474.0,0.8913]
[1728324404208,0.40426,2474.3,2474.2,0.40427]
[1728324404404,0.40428,2474.2,2474.1,0.40428]
[1728324405512,0.40428,2474.2,2474.0,1.29559]
[1728324405513,0.40428,2474.1,2474.0,1.29559]
[1728324405711,3.61208,2474.1,2474.0,1.29559]
[1728324408419,3.2078,2474.1,2474.0,1.29559]
[1728324408622,3.61208,2474.1,2474.0,1.29559]
[1728324409120,3.2078,2474.1,2474.0,1.29559]
[1728324410005,3.61208,2474.1,2474.0,1.29559]
[1728324410512,3.61208,2474.1,2474.0,0.8913]
[1728324412014,3.61208,2474.1,2474.0,0.4786]
[1728324412221,7.65368,2474.1,2474.0,0.4786]
[1728324412610,7.65368,2474.1,2474.0,0.0698]
[1728324413508,13.65368,2474.1,2474.0,0.0698]
[1728324417124,13.2494,2474.1,2473.6,0.3912]
[1728324417324,13.2494,2474.1,2473.2,0.49842]
[1728324417325,6.3578,2473.7,2473.2,0.49842]
[1728324417619,6.3578,2473.3,2473.0,0.8142]
[1728324417822,3.55445,2473.1,2473.0,0.8142]
[1728324418317,3.55445,2473.1,2473.0,1.21866]
[1728324418520,3.15,2473.1,2473.0,1.21866]
[1728324419713,3.55445,2473.1,2473.0,1.21866]
[1728324419914,3.15,2473.1,2473.0,1.21866]
[1728324420912,0.40444,2473.2,2473.0,1.21866]
[1728324421117,6.3578,2473.3,2473.0,1.21865]
[1728324421415,0.40443,2473.2,2473.1,0.4168]
[1728324423821,3.2078,2473.3,2473.1,0.4168]
[1728324424027,3.2078,2473.3,2473.2,0.40443]
[1728324424428,3.2078,2473.3,2473.2,4.44763]
[1728324424823,6.3578,2473.3,2473.1,0.4168]
[1728324425025,0.40443,2473.2,2473.1,0.4168]
[1728324425226,0.81913,2473.2,2473.1,0.4168]
[1728324425421,1.2585,2473.2,2472.7,0.40451]
[1728324425623,0.4045,2472.8,2472.7,1.21741]
[1728324425921,0.4045,2472.8,2472.7,0.8129]
[1728324426120,0.4045,2472.8,2472.7,4.8569]
[1728324426328,0.4045,2472.8,2472.3,1.10545]
[1728324426329,3.15,2472.8,2472.3,0.094]
[1728324426520,1.323,2473.1,2472.2,1.21749]
[1728324426521,0.40458,2472.3,2472.2,1.21749]
[1728324426829,0.40458,2472.3,2472.2,0.8129]
[1728324427026,6.3578,2472.4,2471.6,0.094]
[1728324427326,3.15,2471.9,2471.8,0.40465]
[1728324427527,3.55464,2471.9,2471.8,0.40465]
[1728324427830,3.15,2471.9,2471.7,0.8245]
[1728324428028,3.55465,2471.9,2471.7,1.22917]
[1728324428227,0.40466,2471.8,2471.7,1.22917]
[1728324428530,3.55466,2471.9,2471.7,0.8245]
[1728324428719,3.55466,2471.9,2471.7,1.22917]
[1728324428720,0.40466,2471.8,2471.7,1.22917]
[1728324428924,0.40466,2471.8,2471.7,0.8245]
[1728324429122,0.40466,2471.8,2471.7,0.4037]
[1728324429329,0.4047,2471.6,2471.3,0.3894]
[1728324429622,3.15,2471.5,2471.3,0.3894]
[1728324430024,3.55472,2471.5,2471.3,0.3894]
[1728324430227,3.15,2471.5,2471.3,0.3894]
[1728324430424,3.2078,2471.4,2471.1,0.415]
[1728324430626,3.15,2471.2,2471.1,0.81977]
[1728324430827,3.15,2471.2,2471.1,0.415]
[1728324431126,3.15,2471.2,2470.5,0.094]
[1728324431324,3.15,2470.9,2470.8,0.40482]
[1728324431825,3.15,2470.9,2470.6,0.8343]
[1728324431826,3.55482,2470.9,2470.6,1.23915]
[1728324432022,6.3578,2470.7,2470.2,1.10629]
[1728324432231,3.15,2470.5,2470.4,0.40489]
[1728324432429,3.15,2470.6,2470.5,0.40487]
[1728324432731,3.55486,2470.6,2470.4,0.40488]
[1728324432929,3.15,2470.6,2470.5,0.40487]
[1728324433523,3.55486,2470.6,2470.4,0.40488]
[1728324433725,3.15,2470.6,2470.5,0.40487]
[1728324435425,3.2078,2470.7,2470.3,0.415]
[1728324435626,6.76265,2470.7,2470.5,0.40487]
[1728324435827,6.3578,2470.7,2470.3,0.415]
[1728324436026,3.15,2470.5,2470.3,0.415]
[1728324436225,3.61269,2470.4,2470.3,0.415]
[1728324436435,3.61269,2470.4,2469.7,0.4048]
[1728324436436,0.40495,2470.1,2469.7,0.4048]
[1728324436621,0.40495,2470.1,2469.7,0.8024]
[1728324436622,3.15,2470.0,2469.7,0.8024]
[1728324436936,3.15,2469.9,2469.8,0.40498]
[1728324437239,3.15,2469.9,2469.7,0.8026]
[1728324437240,6.76278,2469.9,2469.7,0.8026]
[1728324437629,0.40499,2469.8,2469.7,0.8026]
[1728324437827,6.3578,2469.9,2469.7,0.3976]
[1728324438027,3.2078,2469.9,2469.8,0.40499]
[1728324438665,3.2078,2469.9,2469.8,10.45379]
[1728324439554,3.2078,2470.3,2470.2,0.40492]
[1728324440056,0.4049,2470.4,2470.0,0.40495]
[1728324440356,3.2078,2470.3,2470.2,0.40492]
[1728324440754,3.2078,2470.3,2470.2,4.45292]
[1728324440953,3.2078,2470.3,2470.2,5.28602]
[1728324441158,2.5638,2470.3,2470.2,11.28602]
[1728324441461,3.2078,2470.6,2470.5,0.40487]
[1728324441850,3.2078,2470.6,2470.5,4.45287]
[1728324444742,0.4821,2471.0,2470.7,0.40484]
[1728324444743,0.40482,2470.8,2470.7,0.40484]
[1728324446435,3.15,2470.9,2470.2,4.44582]
[1728324446734,3.55482,2470.9,2470.4,1.01223]
[1728324446936,3.55482,2470.9,2470.8,0.40482]
[1728324447237,0.40483,2470.8,2470.7,0.40483]
[1728324448435,3.15,2470.9,2470.2,4.44582]
[1728324448632,0.40485,2470.7,2470.6,0.40485]
[1728324448942,0.40483,2470.8,2470.7,0.40484]
[1728324449538,0.40485,2470.7,2470.6,0.40485]
[1728324449836,4.16205,2470.9,2470.5,0.40486]
[1728324450041,4.16205,2470.9,2470.2,4.44582]
[1728324450238,3.15,2470.9,2470.2,4.44582]
[1728324450539,0.40487,2470.6,2470.3,0.40491]
[1728324450740,0.40487,2470.6,2470.5,0.40487]
[1728324451842,3.15,2470.9,2470.2,4.0409]
[1728324452144,3.55482,2470.9,2470.8,0.40482]
[1728324452943,0.40485,2470.7,2470.6,0.40484]
[1728324453439,0.40485,2470.7,2470.3,1.01227]
[1728324453440,0.40484,2470.8,2470.7,0.40483]
[1728324458944,0.40484,2470.8,2470.3,1.01227]
[1728324458945,0.40485,2470.7,2470.6,0.40485]
[1728324461031,0.40487,2470.6,2470.5,0.40487]
[1728324461437,3.15,2470.6,2470.2,3.2078]
[1728324461653,0.4049,2470.4,2470.3,0.4049]
[1728324462037,0.40491,2470.3,2470.2,0.40491]
[1728324462242,0.40493,2470.2,2470.1,0.40493]
[1728324462543,0.83163,2470.2,2470.1,0.40493]
[1728324464944,0.4267,2470.2,2470.1,0.40493]
[1728324465945,0.83162,2470.2,2470.1,0.40493]
[1728324466146,0.4267,2470.2,2470.1,0.40493]
[1728324466539,0.83162,2470.2,2470.1,0.40493]
[1728324466946,0.4267,2470.2,2470.0,1.0573912]
[1728324467150,0.40494,2470.1,2470.0,0.40494]
[1728324467443,0.79504,2470.1,2470.0,0.40494]
[1728324468239,4.55246,2470.1,2469.6,2.0699312]
[1728324468449,0.405,2469.8,2469.7,0.40499]
[1728324469047,3.15,2469.9,2469.6,0.405]
[1728324469048,0.40501,2469.7,2469.6,0.405]
[1728324469250,1.22231,2469.7,2469.6,0.405]
[1728324469451,4.37232,2469.7,2469.6,0.40502]
[1728324469649,0.40503,2469.6,2469.5,0.40502]
[1728324469845,0.4137,2469.6,2469.3,1.0573912]
[1728324470043,0.40505,2469.5,2469.4,0.40505]
[1728324470347,0.40506,2469.4,2469.3,0.40505]
[1728324470738,0.40506,2469.4,2469.3,4.45465]
[1728324470944,3.55505,2469.5,2469.4,0.40505]
[1728324474853,0.40507,2469.4,2469.3,0.40506]
[1728324475146,3.55505,2469.5,2468.9,3.6129]
[1728324475147,0.40509,2469.3,2468.9,3.6129]
[1728324475351,3.15,2469.0,2468.6,3.3018]
[1728324475552,3.55516,2468.8,2468.7,0.40516]
[1728324475944,0.40518,2468.7,2468.5,0.4029]
[1728324476252,0.82577,2468.7,2468.6,4.45638]
[1728324476663,0.4206,2468.7,2468.6,4.45638]
[1728324477472,0.4276,2468.9,2468.8,0.40515]
[1728324477671,0.40513,2468.9,2468.8,0.40515]
[1728324477872,3.5649,2469.0,2468.5,0.4029]
[1728324477873,4.39763,2469.0,2468.9,0.40513]
[1728324478066,3.9925,2469.0,2468.9,0.40513]
[1728324478272,3.15,2469.2,2468.7,4.22072]
[1728324478582,0.40508,2469.3,2469.2,0.40509]
[1728324478873,3.15,2469.4,2469.3,0.40507]
[1728324479079,3.15,2469.4,2469.0,1.0128]
[1728324479080,3.15,2469.4,2469.1,0.4051]
[1728324479272,3.15,2469.2,2469.1,0.4051]
[1728324479659,3.15,2469.2,2469.0,0.4292]
[1728324479660,3.5551,2469.2,2469.0,0.83431]
[1728324479866,3.15,2469.2,2469.0,0.4292]
[1728324480067,0.40513,2469.0,2468.8,0.40514]
[1728324480284,4.55596,2468.9,2468.6,0.40518]
[1728324480588,3.55518,2468.7,2468.6,0.40518]
[1728324480874,3.55518,2468.7,2468.5,0.83439]
[1728324480875,0.40518,2468.6,2468.5,0.83439]
[1728324481081,3.15,2468.7,2468.2,1.44232]
[1728324481272,3.15,2468.7,2468.5,0.40519]
[1728324481273,0.40519,2468.6,2468.5,0.40519]
[1728324481481,0.40519,2468.6,2468.2,1.44232]
[1728324481773,0.40521,2468.5,2468.4,0.40521]
[1728324481975,0.40521,2468.5,2468.4,0.4052]
[1728324482359,3.5655,2468.7,2468.2,0.4292]
[1728324482565,0.4052,2468.6,2468.5,0.40519]
[1728324483070,0.40522,2468.5,2468.4,0.40521]
[1728324483747,4.57844,2468.7,2468.5,0.40519]
[1728324483748,0.4052,2468.6,2468.5,0.40519]
[1728324484750,3.5655,2468.7,2468.2,0.4292]
[1728324485054,7.15605,2468.9,2468.8,0.40515]
[1728324485351,0.40516,2468.8,2468.7,0.40516]
[1728324487055,3.5431,2468.9,2468.4,4.22084]
[1728324487253,0.3931,2468.9,2468.8,0.40515]
[1728324487664,0.79823,2468.9,2468.8,0.40515]
[1728324487967,0.3931,2468.9,2468.8,0.40515]
[1728324488263,0.79823,2468.9,2468.8,0.40515]
[1728324488764,3.5603,2469.0,2468.9,0.40513]
[1728324489559,0.7914,2469.2,2469.1,0.4051]
[1728324489765,0.3863,2469.2,2469.0,0.3997]
[1728324489957,0.4051,2469.1,2469.0,0.80481]
[1728324490366,0.3863,2469.2,2469.0,0.3997]
[1728324490661,0.79139,2469.2,2469.1,0.4051]
[1728324491465,0.3863,2469.2,2469.0,0.3997]
[1728324491768,0.4051,2469.1,2469.0,0.8048]
[1728324492658,1.01283,2469.0,2468.6,3.2078]
[1728324492866,0.40516,2468.8,2468.7,0.40515]
[1728324493260,0.40518,2468.7,2468.6,0.40517]
[1728324493763,0.40517,2468.8,2468.7,0.40515]
[1728324493963,3.15,2469.0,2468.5,1.01301]
[1728324494164,3.55513,2469.0,2468.9,0.40513]
[1728324496561,0.40519,2468.7,2468.6,0.40517]
[1728324496771,3.55519,2468.7,2468.4,0.4155]
[1728324496987,3.5552,2468.5,2468.4,0.40521]
[1728324497183,3.5552,2468.5,2468.3,3.2078]
[1728324497513,3.5552,2468.5,2468.2,0.40524]
[1728324497514,0.40523,2468.3,2468.2,0.40524]
[1728324497797,3.55523,2468.3,2468.2,0.40524]
[1728324498392,0.40527,2468.2,2468.1,0.40525]
[1728324498598,0.40529,2468.0,2467.9,0.40528]
[1728324498895,9.15,2468.0,2467.7,3.2078]
[1728324499091,3.15,2467.8,2467.3,3.3018]
[1728324499286,4.029,2467.9,2467.3,3.3018]
[1728324499287,3.15,2467.4,2467.3,0.4054]
[1728324499694,3.15,2467.5,2467.4,0.40538]
[1728324499900,3.15,2467.5,2467.4,0.83268]
[1728324500303,3.15,2467.5,2467.4,0.40538]
[1728324500604,0.40536,2467.5,2467.4,4.45818]
[1728324501101,0.40536,2467.5,2467.4,4.0528]
[1728324501304,0.4054,2467.3,2467.2,0.40541]
[1728324501592,0.4054,2467.3,2467.1,1.0573912]
[1728324501593,3.89,2467.5,2467.1,1.0573912]
[1728324501791,0.40541,2467.3,2467.1,1.0573912]
[1728324502096,0.40541,2467.3,2467.2,0.40541]
[1728324502295,0.40541,2467.2,2467.1,1.0573912]
[1728324502599,4.29538,2467.5,2467.1,1.0573912]
[1728324502809,3.2078,2467.6,2467.0,3.2078]
[1728324503099,3.2078,2467.6,2466.7,0.5213]
[1728324503100,7.0978,2467.3,2466.7,0.094]
[1728324503298,7.0978,2467.3,2466.5,0.109]
[1728324503299,1.41913,2466.9,2466.5,0.40552]
[1728324503500,0.40551,2466.7,2466.5,0.40552]
[1728324503700,0.40551,2466.6,2466.4,0.40554]
[1728324503895,0.4003,2466.8,2466.3,0.3934]
[1728324504093,0.4055,2466.7,2466.6,0.4055]
[1728324504289,0.4003,2466.8,2466.3,0.3934]
[1728324504501,0.4055,2466.7,2466.6,0.4055]
[1728324504809,4.2903,2466.8,2466.3,0.3934]
[1728324504993,4.2903,2466.8,2466.1,0.094]
[1728324505305,4.2903,2466.8,2466.6,0.4055]
[1728324505306,0.4055,2466.7,2466.6,0.4055]
[1728324505503,0.4003,2466.8,2466.1,40.894]
[1728324505807,0.4055,2466.7,2466.5,0.40552]
[1728324505994,0.4055,2466.7,2466.1,41.81397]
[1728324506195,0.80579,2466.8,2466.6,0.40551]
[1728324506705,3.2078,2467.0,2466.7,4.0536]
[1728324506892,0.8827,2467.2,2466.7,4.0536]
[1728324506893,1.23191,2467.2,2466.9,0.40546]
[1728324507092,1.23191,2467.2,2466.7,3.2078]
[1728324507093,0.8265,2467.2,2467.1,0.40543]
[1728324507702,0.4253,2467.2,2467.1,0.40543]
[1728324507900,4.3153,2467.2,2466.5,1.0138]
[1728324508205,4.72073,2467.2,2467.0,0.40545]
[1728324508517,0.40543,2467.1,2466.9,0.40545]
[1728324508701,0.40543,2467.1,2466.5,1.1078]
[1728324508702,0.4253,2467.2,2467.0,0.40543]
[1728324508901,0.83071,2467.2,2467.0,0.40543]
[1728324509393,0.40543,2467.1,2466.9,0.40545]
[1728324509603,0.40543,2467.1,2466.3,0.094]
[1728324509604,3.2078,2467.0,2466.3,0.094]
[1728324509802,0.4055,2466.7,2466.1,4.197]
[1728324509999,3.89,2466.8,2466.5,0.40552]
[1728324510199,4.29549,2466.8,2466.2,0.40558]
[1728324510398,4.29549,2466.8,2466.6,0.4055]
[1728324510602,4.29549,2466.8,2466.6,0.40551]
[1728324511304,0.40552,2466.6,2466.4,0.40553]
[1728324511509,3.89,2466.5,2466.0,3.3018]
[1728324511807,0.3939,2466.5,2465.7,4.35525283]
[1728324512105,1.01395,2466.2,2465.7,3.61345]
[1728324512398,0.4197,2466.1,2465.8,0.40564]
[1728324512699,0.40564,2465.8,2465.7,3.2078]
[1728324512994,0.40564,2465.8,2465.7,3.61346]
[1728324513208,0.40564,2465.8,2465.7,3.2078]
[1728324513400,0.40564,2465.8,2465.7,3.61346]
[1728324513603,0.40564,2465.8,2465.7,3.2078]
[1728324513791,0.40564,2465.8,2465.7,3.61346]
[1728324513981,0.40562,2466.0,2465.9,0.40563]
[1728324514184,0.4197,2466.1,2465.7,7.263]
[1728324514185,0.8253,2466.1,2466.0,0.40561]
[1728324514399,0.40563,2465.9,2465.8,0.40563]
[1728324514894,0.4197,2466.1,2465.7,3.2078]
[1728324515178,0.40562,2466.0,2465.9,0.40562]
[1728324517181,1.21370749,2466.2,2465.9,0.40562]
[1728324517478,1.21370749,2466.2,2465.5,40.8]
[1728324517666,0.19973749,2466.2,2465.9,0.40562]
[1728324517875,0.40561,2466.0,2465.9,0.40562]
[1728324518474,0.40561,2466.1,2465.6,1.0142]
[1728324518676,0.40561,2466.1,2466.0,0.40561]
[1728324519275,3.89,2466.3,2465.6,1.0142]
[1728324519477,0.89344,2466.5,2466.3,0.40556]
[1728324519791,0.89344,2466.5,2466.4,0.40555]
[1728324519792,0.3939,2466.5,2466.4,0.40555]
[1728324520092,0.3939,2466.5,2465.8,4.2219]
[1728324520287,4.29557,2466.3,2466.1,0.40559]
[1728324553481,0.92986186,2466.2,2466.1,0.40559]
[1728324553983,1.60940009,2466.2,2466.1,0.40559]
[1728324568894,0.3974,2466.4,2466.3,0.40556]
[1728324569191,0.3974,2466.4,2466.1,0.40559]
[1728324569694,1.01391,2466.3,2466.1,0.40559]
[1728324570591,1.01391,2466.3,2466.1,0.40559]
[1728324689582,0.40555,2466.5,2466.4,0.40555]
[1728324689781,1.01383,2466.6,2466.1,3.2078]
[1728324689983,1.01383,2466.6,2466.4,3.81836968]
[1728324689984,0.40553,2466.5,2466.4,3.81836968]
[1728324690288,3.17,2466.5,2466.1,3.2078]
[1728324690486,3.57558,2466.2,2466.1,3.81836968]
[1728324692693,3.5569,2466.6,2466.3,0.40555]
[1728324692882,8.43283455,2466.8,2466.4,4.22389968]
[1728324692883,0.40554,2466.5,2466.4,4.22389968]
[1728324693288,0.40553,2466.5,2466.4,3.81836968]
[1728324693593,0.40553,2466.5,2466.4,4.22391968]
[1728324694788,0.40553,2466.5,2466.4,3.81836968]
[1728324695591,0.40553,2466.5,2466.4,4.22391968]
[1728324696489,0.40553,2466.6,2466.5,0.40552]
[1728324696791,0.40553,2466.6,2466.5,4.22388968]
[1728324697191,7.39152,2466.8,2466.5,3.81836968]
[1728324697388,0.40551,2466.7,2466.6,0.40551]
[1728324697694,0.40551,2466.6,2466.5,4.22388968]
[1728324697896,0.4055,2466.7,2466.6,0.4055]
[1728324698082,0.4055,2466.7,2466.6,4.22386968]
[1728324699086,0.4055,2466.7,2466.6,3.81836968]
[1728324699292,0.4055,2466.7,2466.6,4.22387968]
[1728324699492,0.4055,2466.7,2466.6,3.81836968]
[1728324701091,5.14776444,2466.7,2466.6,3.81836968]
[1728324701401,5.14776444,2466.7,2466.6,4.22387968]
[1728324702291,4.74226444,2466.7,2466.6,4.22387968]
[1728324702495,5.14776444,2466.7,2466.6,3.81836968]
[1728324702688,5.14776444,2466.7,2466.6,4.22387968]
[1728324702899,5.14776444,2466.7,2466.6,3.81836968]
[1728324704002,5.14776444,2466.7,2466.2,3.2078]
[1728324704003,0.40556,2466.3,2466.2,3.2078]
[1728324704192,0.40559,2466.1,2466.0,0.8191]
[1728324704387,0.40559,2466.1,2466.0,0.81911]
[1728324704592,0.40559,2466.1,2466.0,4.63747968]
[1728324705394,0.40559,2466.1,2466.0,4.23186968]
[1728324705592,0.40559,2466.1,2466.0,4.63747968]
[1728324706199,0.40559,2466.1,2466.0,4.23186968]
[1728324706899,0.40559,2466.1,2466.0,4.63747968]
[1728324707098,18.054,2466.1,2465.5,0.40569]
[1728324707309,3.57567,2465.7,2465.6,3.81836968]
[1728324708103,7.24475957,2465.7,2465.6,3.81836968]
[1728324708508,3.57567,2465.7,2465.6,3.81836968]
[1728324709201,6.78347,2465.7,2465.6,3.81836968]
[1728324709396,6.78347,2465.7,2464.9,4.63749]
[1728324709397,0.40577,2465.1,2464.9,0.40579]
[1728324709899,0.40577,2465.1,2465.0,3.81836968]
[1728324710094,0.40576,2465.2,2465.0,4.22414968]
[1728324710299,0.40576,2465.2,2465.0,0.40578]
[1728324710494,0.40576,2465.2,2465.1,3.81836968]
[1728324711093,0.40574,2465.3,2465.1,3.81836968]
[1728324711396,0.40574,2465.3,2465.2,3.81836968]
[1728324712301,0.40573,2465.3,2465.2,3.81836968]
[1728324713900,3.57573,2465.3,2465.2,3.81836968]
[1728324716205,0.40579,2465.0,2464.8,1.2149]
[1728324716408,3.17,2465.3,2465.1,3.81836968]
[1728324716612,0.40574,2465.2,2465.1,3.81836968]
[1728324717608,3.2078,2465.4,2465.1,3.81836968]
[1728324717908,3.61352,2465.4,2465.3,3.81836968]
[1728324718109,0.40579,2464.9,2464.8,0.8091]
[1728324718515,3.17,2465.0,2464.3,3.2078]
[1728324718705,3.17,2464.8,2464.7,3.81836968]
[1728324718905,3.57581,2464.8,2464.7,3.81836968]
[1728324719109,0.40581,2464.8,2464.7,3.81836968]
[1728324720010,3.17,2464.9,2464.7,3.81836968]
[1728324720214,0.40578,2465.0,2464.8,4.22417968]
[1728324720515,0.40578,2465.0,2464.9,4.24186968]
[1728324721214,0.40578,2465.0,2464.9,4.64765968]
[1728324721521,0.40578,2465.0,2464.9,4.24186968]
[1728324721707,0.40578,2465.0,2464.9,4.64765968]
[1728324721907,0.40577,2465.1,2464.9,4.64764968]
[1728324722106,0.40577,2465.1,2464.9,0.82928]
[1728324722325,0.40577,2465.1,2465.0,3.81836968]
[1728324723424,0.40577,2465.1,2465.0,4.22414968]
[1728324723622,11.06164267,2465.4,2465.0,4.23096968]
[1728324723823,6.78351,2465.4,2465.3,3.81836968]
[1728324725634,6.78351,2465.4,2465.3,4.22409968]
[1728324725826,6.78351,2465.4,2465.3,3.81836968]
[1728324729027,10.45303267,2465.4,2465.3,3.81836968]
[1728324729727,3.04297,2465.3,2464.4,0.4106]
[1728324730031,3.57584,2464.6,2464.5,0.8399]
[1728324730427,3.57584,2464.6,2464.5,4.65826968]
[1728324730627,6.78364,2464.6,2464.5,3.81836968]
[1728324731631,3.61364,2464.6,2464.5,3.81836968]
[1728324731936,3.2078,2464.6,2464.5,4.22422968]
[1728324733534,3.57581,2464.8,2464.7,0.40583]
[1728324733736,3.17,2464.8,2464.7,4.22419968]
[1728324733944,0.4058,2464.9,2464.8,0.40581]
[1728324734134,0.4058,2464.9,2464.8,3.81836968]
[1728324734636,0.4058,2464.9,2464.8,4.22417968]
[1728324735032,0.4058,2464.9,2464.8,3.81836968]
[1728324735534,0.4058,2464.9,2464.8,4.22417968]
[1728324735735,0.40579,2464.9,2464.8,4.22416968]
[1728324735939,3.57578,2465.0,2464.9,0.40579]
[1728324736139,5.88038,2465.2,2464.9,3.81836968]
[1728324736343,0.40578,2465.0,2464.9,0.40578]
[1728324736542,3.57574,2465.2,2465.1,3.81836968]
[1728324738248,7.24127162,2465.2,2465.1,3.81836968]
[1728324739140,3.57574,2465.2,2465.1,3.81836968]
[1728324740038,7.76493299,2465.2,2465.1,3.81836968]
[1728324740239,7.76493299,2465.2,2465.1,1.54708863]
[1728324740440,3.57574,2465.2,2465.1,1.54708863]
[1728324740644,13.2268,2465.2,2464.6,0.8201]
[1728324740840,0.40583,2464.7,2464.6,0.8201]
[1728324741346,0.40583,2464.7,2464.6,2.36718863]
[1728324741743,7.2276,2464.7,2464.2,3.2078]
[1728324742052,7.2276,2464.7,2464.3,1.54708863]
[1728324742053,3.57587,2464.4,2464.3,1.54708863]
[1728324742742,0.40592,2464.1,2464.0,0.8371]
[1728324742950,3.57592,2464.1,2464.0,0.8371]
[1728324743151,3.57592,2464.1,2464.0,2.38418863]
[1728324743546,3.57592,2464.1,2464.0,2.79012863]
[1728324744446,3.57592,2464.1,2464.0,2.38418863]
[1728324744743,3.57592,2464.1,2464.0,2.79012863]
[1728324744946,3.57592,2464.1,2464.0,2.38418863]
[1728324745452,3.57592,2464.1,2464.0,2.79012863]
[1728324745651,3.17,2464.1,2464.0,2.79012863]
[1728324745845,3.57592,2464.1,2464.0,2.79012863]
[1728324746047,3.17,2464.1,2464.0,2.79012863]
[1728324747046,3.17,2464.2,2464.1,0.40592]
[1728324747355,3.57591,2464.2,2464.1,1.95300863]
[1728324747545,3.57591,2464.2,2464.1,1.54708863]
[1728324747947,3.17,2464.2,2464.1,1.54708863]
[1728324748147,3.17,2464.2,2464.1,1.95300863]
[1728324748452,3.57591,2464.2,2464.1,1.95300863]
[1728324748951,3.17,2464.2,2464.1,1.95300863]
[1728324749146,3.57591,2464.2,2464.1,1.95300863]
[1728324749957,3.17,2464.2,2464.1,1.95300863]
[1728324750149,3.2078,2464.4,2464.1,1.54708863]
[1728324750150,6.3778,2464.4,2464.1,1.54708863]
[1728324750455,3.17,2464.4,2464.3,1.95297863]
[1728324750749,6.3778,2464.7,2464.3,1.95297863]
[1728324750953,6.78363,2464.7,2464.6,1.54708863]
[1728324753350,6.46046652,2465.0,2464.8,0.40581]